{"text_format":"1","workbook":"xlsx","n_sheets":2,"sheets":["Liste","Emargement"],"not_rendered":{"charts":0,"images":0,"macros":1,"external_links":0,"defined_names":2,"comments":0,"pivot_tables":0},"unopened":[],"bounds":{"document_bytes":16777216,"sheet_cells":100000,"rows_first":2000,"rows_last":500,"rows_between":2000,"halvings":0,"cell_chars":16384,"cell_head_chars":4096},"cells_cut":0,"cells_raw":0,"read":"whole","date_system":"1900"}

{"sheet":"Liste","index":0,"n_rows":67,"n_cols":6,"rows_kept":67,"cut":false,"hidden":false,"merged":[]}
["Titre","Nom","Prénom","Adresse","CP","Ville"]
["M.","Marc","BAYE","6 rue de la Gare",35300,"FOUGÈRES"]
["M.","Marc","BAYE","7 rue de la Gare",35301,"FOUGÈRES"]
["Mme","Marie","BERET","Résience St Joseph",35300,"FOUGÈRES"]
["M.","Michel","BERTAN","Rue du Champ du Regard",35300,"FOUGÈRES"]
["M.","Claude","BANET","7 rue de la Rivière Dorée",35300,"FOUGÈRES"]
["Mme","Aurélie","BLANDIN","50 A rue Papu",35300,"FOUGÈRES"]
["M.","Arnaud","ROISSEL","5 rue de la Croix Rouge",35300,"FOUGÈRES"]
["M.","Jean","BRISSEL","3 rue de la Mairie",35300,"FOUGÈRES"]
["Mme","Estelle","BOTTIN","22 lotissement les Pins",35300,"FOUGÈRES"]
["M.","Robert","BAUFFORT","12 rue de l’Emeraude",35300,"FOUGÈRES"]
["M.","Hervé","OURGES","4 le Prée",35300,"FOUGÈRES"]
["Mme","Audrey","CAILLE","47 avenue de la Verrerie",35300,"FOUGÈRES"]
["M.","Roméo","CHOVEL","5 rue St Guillaume",35300,"FOUGÈRES"]
["M.","Bernard","CHERFBON","4 résidence Emeraude",35300,"FOUGÈRES"]
["Mme","Léone","COUDRE","5 vallee Charruée",35300,"FOUGÈRES"]
["M.","Gérard","COURT","16 rue Pompéan",35300,"FOUGÈRES"]
["Mme","Louise","DANFIN","3 la Butte",35300,"FOUGÈRES"]
["M.","Louis","DALIPON","101 le Tilleul",35300,"FOUGÈRES"]
["M.","Maurice","DEBOUEL","25 Clos des Melliers",35300,"FOUGÈRES"]
["Mme","Pauline","DARDO","3 la Brimandière",35300,"FOUGÈRES"]
["M.","Pierre","BREIL","13 rue des Sabotiers",35300,"FOUGÈRES"]
["M.","Marc","BAYE","6 rue de la Gare",35300,"FOUGÈRES"]
["Mme","Marie","BERET","Résience St Joseph",35300,"FOUGÈRES"]
["M.","Michel","BERTAN","Rue du Champ du Regard",35300,"FOUGÈRES"]
["M.","Claude","BANET","7 rue de la Rivière Dorée",35300,"FOUGÈRES"]
["Mme","Aurélie","BLANDIN","50 A rue Papu",35300,"FOUGÈRES"]
["M.","Arnaud","ROISSEL","5 rue de la Croix Rouge",35300,"FOUGÈRES"]
["M.","Jean","BRISSEL","3 rue de la Mairie",35300,"FOUGÈRES"]
["Mme","Estelle","BOTTIN","22 lotissement les Pins",35300,"FOUGÈRES"]
["M.","Robert","BAUFFORT","12 rue de l’Emeraude",35300,"FOUGÈRES"]
["M.","Hervé","OURGES","4 le Prée",35300,"FOUGÈRES"]
["Mme","Audrey","CAILLE","47 avenue de la Verrerie",35300,"FOUGÈRES"]
["M.","Roméo","CHOVEL","5 rue St Guillaume",35300,"FOUGÈRES"]
["M.","Bernard","CHERFBON","4 résidence Emeraude",35300,"FOUGÈRES"]
["Mme","Léone","COUDRE","5 vallee Charruée",35300,"FOUGÈRES"]
["M.","Gérard","COURT","16 rue Pompéan",35300,"FOUGÈRES"]
["Mme","Louise","DANFIN","3 la Butte",35300,"FOUGÈRES"]
["M.","Louis","DALIPON","101 le Tilleul",35300,"FOUGÈRES"]
["M.","Maurice","DEBOUEL","25 Clos des Melliers",35300,"FOUGÈRES"]
["Mme","Pauline","DARDO","3 la Brimandière",35300,"FOUGÈRES"]
["M.","Pierre","BREIL","13 rue des Sabotiers",35300,"FOUGÈRES"]
["M.","Marc","BAYE","6 rue de la Gare",35300,"FOUGÈRES"]
["Mme","Marie","BERET","Résience St Joseph",35300,"FOUGÈRES"]
["M.","Michel","BERTAN","Rue du Champ du Regard",35300,"FOUGÈRES"]
["M.","Claude","BANET","7 rue de la Rivière Dorée",35300,"FOUGÈRES"]
["Mme","Aurélie","BLANDIN","50 A rue Papu",35300,"FOUGÈRES"]
["M.","Arnaud","ROISSEL","5 rue de la Croix Rouge",35300,"FOUGÈRES"]
["M.","Jean","BRISSEL","3 rue de la Mairie",35300,"FOUGÈRES"]
["Mme","Estelle","BOTTIN","22 lotissement les Pins",35300,"FOUGÈRES"]
["M.","Robert","BAUFFORT","12 rue de l’Emeraude",35300,"FOUGÈRES"]
["M.","Hervé","OURGES","4 le Prée",35300,"FOUGÈRES"]
["Mme","Audrey","CAILLE","47 avenue de la Verrerie",35300,"FOUGÈRES"]
["M.","Roméo","CHOVEL","5 rue St Guillaume",35300,"FOUGÈRES"]
["M.","Bernard","CHERFBON","4 résidence Emeraude",35300,"FOUGÈRES"]
["Mme","Léone","COUDRE","5 vallee Charruée",35300,"FOUGÈRES"]
["M.","Gérard","COURT","16 rue Pompéan",35300,"FOUGÈRES"]
["Mme","Louise","DANFIN","3 la Butte",35300,"FOUGÈRES"]
["M.","Louis","DALIPON","101 le Tilleul",35300,"FOUGÈRES"]
["M.","Maurice","DEBOUEL","25 Clos des Melliers",35300,"FOUGÈRES"]
["Mme","Pauline","DARDO","3 la Brimandière",35300,"FOUGÈRES"]
["Mme","Pauline","DARDO","4 la Brimandière",35301,"FOUGÈRES"]
["Mme","Pauline","DARDO","5 la Brimandière",35302,"FOUGÈRES"]
["Mme","Pauline","DARDO","6 la Brimandière",35303,"FOUGÈRES"]
["Mme","Pauline","DARDO","7 la Brimandière",35304,"FOUGÈRES"]
["Mme","Pauline","DARDO","8 la Brimandière",35305,"FOUGÈRES"]
["M.","Pierre","BREIL","13 rue des Sabotiers",35300,"FOUGÈRES"]

{"sheet":"Emargement","index":1,"n_rows":65,"n_cols":7,"rows_kept":65,"cut":false,"hidden":false,"merged":[]}
["Nom","mandataires","Présent"]
[{"$f":"CONCATENATE(Liste!A2,\" \",Liste!B2,\" \",Liste!C2,\" \",_xlfn.UNICHAR(10),Liste!D2,_xlfn.UNICHAR(10),Liste!E2,Liste!F2)","v":"M. Marc BAYE \n6 rue de la Gare\n35300FOUGÈRES"},null,null,null,null,null,{"$f":"COUNTA(Liste!B:B)-1","v":66}]
[{"$f":"CONCATENATE(Liste!A3,\" \",Liste!B3,\" \",Liste!C3,\" \",_xlfn.UNICHAR(10),Liste!D3,_xlfn.UNICHAR(10),Liste!E3,Liste!F3)","v":"M. Marc BAYE \n7 rue de la Gare\n35301FOUGÈRES"}]
[{"$f":"CONCATENATE(Liste!A4,\" \",Liste!B4,\" \",Liste!C4,\" \",_xlfn.UNICHAR(10),Liste!D4,_xlfn.UNICHAR(10),Liste!E4,Liste!F4)","v":"Mme Marie BERET \nRésience St Joseph\n35300FOUGÈRES"}]
[{"$f":"CONCATENATE(Liste!A5,\" \",Liste!B5,\" \",Liste!C5,\" \",_xlfn.UNICHAR(10),Liste!D5,_xlfn.UNICHAR(10),Liste!E5,Liste!F5)","v":"M. Michel BERTAN \nRue du Champ du Regard\n35300FOUGÈRES"}]
[{"$f":"CONCATENATE(Liste!A6,\" \",Liste!B6,\" \",Liste!C6,\" \",_xlfn.UNICHAR(10),Liste!D6,_xlfn.UNICHAR(10),Liste!E6,Liste!F6)","v":"M. Claude BANET \n7 rue de la Rivière Dorée\n35300FOUGÈRES"}]
[{"$f":"CONCATENATE(Liste!A7,\" \",Liste!B7,\" \",Liste!C7,\" \",_xlfn.UNICHAR(10),Liste!D7,_xlfn.UNICHAR(10),Liste!E7,Liste!F7)","v":"Mme Aurélie BLANDIN \n50 A rue Papu\n35300FOUGÈRES"}]
[{"$f":"CONCATENATE(Liste!A8,\" \",Liste!B8,\" \",Liste!C8,\" \",_xlfn.UNICHAR(10),Liste!D8,_xlfn.UNICHAR(10),Liste!E8,Liste!F8)","v":"M. Arnaud ROISSEL \n5 rue de la Croix Rouge\n35300FOUGÈRES"}]
[{"$f":"CONCATENATE(Liste!A9,\" \",Liste!B9,\" \",Liste!C9,\" \",_xlfn.UNICHAR(10),Liste!D9,_xlfn.UNICHAR(10),Liste!E9,Liste!F9)","v":"M. Jean BRISSEL \n3 rue de la Mairie\n35300FOUGÈRES"}]
[{"$f":"CONCATENATE(Liste!A10,\" \",Liste!B10,\" \",Liste!C10,\" \",_xlfn.UNICHAR(10),Liste!D10,_xlfn.UNICHAR(10),Liste!E10,Liste!F10)","v":"Mme Estelle BOTTIN \n22 lotissement les Pins\n35300FOUGÈRES"}]
[{"$f":"CONCATENATE(Liste!A11,\" \",Liste!B11,\" \",Liste!C11,\" \",_xlfn.UNICHAR(10),Liste!D11,_xlfn.UNICHAR(10),Liste!E11,Liste!F11)","v":"M. Robert BAUFFORT \n12 rue de l’Emeraude\n35300FOUGÈRES"}]
[{"$f":"CONCATENATE(Liste!A12,\" \",Liste!B12,\" \",Liste!C12,\" \",_xlfn.UNICHAR(10),Liste!D12,_xlfn.UNICHAR(10),Liste!E12,Liste!F12)","v":"M. Hervé OURGES \n4 le Prée\n35300FOUGÈRES"}]
[{"$f":"CONCATENATE(Liste!A13,\" \",Liste!B13,\" \",Liste!C13,\" \",_xlfn.UNICHAR(10),Liste!D13,_xlfn.UNICHAR(10),Liste!E13,Liste!F13)","v":"Mme Audrey CAILLE \n47 avenue de la Verrerie\n35300FOUGÈRES"}]
[{"$f":"CONCATENATE(Liste!A14,\" \",Liste!B14,\" \",Liste!C14,\" \",_xlfn.UNICHAR(10),Liste!D14,_xlfn.UNICHAR(10),Liste!E14,Liste!F14)","v":"M. Roméo CHOVEL \n5 rue St Guillaume\n35300FOUGÈRES"}]
[{"$f":"CONCATENATE(Liste!A15,\" \",Liste!B15,\" \",Liste!C15,\" \",_xlfn.UNICHAR(10),Liste!D15,_xlfn.UNICHAR(10),Liste!E15,Liste!F15)","v":"M. Bernard CHERFBON \n4 résidence Emeraude\n35300FOUGÈRES"}]
[{"$f":"CONCATENATE(Liste!A16,\" \",Liste!B16,\" \",Liste!C16,\" \",_xlfn.UNICHAR(10),Liste!D16,_xlfn.UNICHAR(10),Liste!E16,Liste!F16)","v":"Mme Léone COUDRE \n5 vallee Charruée\n35300FOUGÈRES"}]
[{"$f":"CONCATENATE(Liste!A17,\" \",Liste!B17,\" \",Liste!C17,\" \",_xlfn.UNICHAR(10),Liste!D17,_xlfn.UNICHAR(10),Liste!E17,Liste!F17)","v":"M. Gérard COURT \n16 rue Pompéan\n35300FOUGÈRES"}]
[{"$f":"CONCATENATE(Liste!A18,\" \",Liste!B18,\" \",Liste!C18,\" \",_xlfn.UNICHAR(10),Liste!D18,_xlfn.UNICHAR(10),Liste!E18,Liste!F18)","v":"Mme Louise DANFIN \n3 la Butte\n35300FOUGÈRES"}]
[{"$f":"CONCATENATE(Liste!A19,\" \",Liste!B19,\" \",Liste!C19,\" \",_xlfn.UNICHAR(10),Liste!D19,_xlfn.UNICHAR(10),Liste!E19,Liste!F19)","v":"M. Louis DALIPON \n101 le Tilleul\n35300FOUGÈRES"}]
[{"$f":"CONCATENATE(Liste!A20,\" \",Liste!B20,\" \",Liste!C20,\" \",_xlfn.UNICHAR(10),Liste!D20,_xlfn.UNICHAR(10),Liste!E20,Liste!F20)","v":"M. Maurice DEBOUEL \n25 Clos des Melliers\n35300FOUGÈRES"}]
[{"$f":"CONCATENATE(Liste!A21,\" \",Liste!B21,\" \",Liste!C21,\" \",_xlfn.UNICHAR(10),Liste!D21,_xlfn.UNICHAR(10),Liste!E21,Liste!F21)","v":"Mme Pauline DARDO \n3 la Brimandière\n35300FOUGÈRES"}]
[{"$f":"CONCATENATE(Liste!A22,\" \",Liste!B22,\" \",Liste!C22,\" \",_xlfn.UNICHAR(10),Liste!D22,_xlfn.UNICHAR(10),Liste!E22,Liste!F22)","v":"M. Pierre BREIL \n13 rue des Sabotiers\n35300FOUGÈRES"}]
[{"$f":"CONCATENATE(Liste!A23,\" \",Liste!B23,\" \",Liste!C23,\" \",_xlfn.UNICHAR(10),Liste!D23,_xlfn.UNICHAR(10),Liste!E23,Liste!F23)","v":"M. Marc BAYE \n6 rue de la Gare\n35300FOUGÈRES"}]
[{"$f":"CONCATENATE(Liste!A24,\" \",Liste!B24,\" \",Liste!C24,\" \",_xlfn.UNICHAR(10),Liste!D24,_xlfn.UNICHAR(10),Liste!E24,Liste!F24)","v":"Mme Marie BERET \nRésience St Joseph\n35300FOUGÈRES"}]
[{"$f":"CONCATENATE(Liste!A25,\" \",Liste!B25,\" \",Liste!C25,\" \",_xlfn.UNICHAR(10),Liste!D25,_xlfn.UNICHAR(10),Liste!E25,Liste!F25)","v":"M. Michel BERTAN \nRue du Champ du Regard\n35300FOUGÈRES"}]
[{"$f":"CONCATENATE(Liste!A26,\" \",Liste!B26,\" \",Liste!C26,\" \",_xlfn.UNICHAR(10),Liste!D26,_xlfn.UNICHAR(10),Liste!E26,Liste!F26)","v":"M. Claude BANET \n7 rue de la Rivière Dorée\n35300FOUGÈRES"}]
[{"$f":"CONCATENATE(Liste!A27,\" \",Liste!B27,\" \",Liste!C27,\" \",_xlfn.UNICHAR(10),Liste!D27,_xlfn.UNICHAR(10),Liste!E27,Liste!F27)","v":"Mme Aurélie BLANDIN \n50 A rue Papu\n35300FOUGÈRES"}]
[{"$f":"CONCATENATE(Liste!A28,\" \",Liste!B28,\" \",Liste!C28,\" \",_xlfn.UNICHAR(10),Liste!D28,_xlfn.UNICHAR(10),Liste!E28,Liste!F28)","v":"M. Arnaud ROISSEL \n5 rue de la Croix Rouge\n35300FOUGÈRES"}]
[{"$f":"CONCATENATE(Liste!A29,\" \",Liste!B29,\" \",Liste!C29,\" \",_xlfn.UNICHAR(10),Liste!D29,_xlfn.UNICHAR(10),Liste!E29,Liste!F29)","v":"M. Jean BRISSEL \n3 rue de la Mairie\n35300FOUGÈRES"}]
[{"$f":"CONCATENATE(Liste!A30,\" \",Liste!B30,\" \",Liste!C30,\" \",_xlfn.UNICHAR(10),Liste!D30,_xlfn.UNICHAR(10),Liste!E30,Liste!F30)","v":"Mme Estelle BOTTIN \n22 lotissement les Pins\n35300FOUGÈRES"}]
[{"$f":"CONCATENATE(Liste!A31,\" \",Liste!B31,\" \",Liste!C31,\" \",_xlfn.UNICHAR(10),Liste!D31,_xlfn.UNICHAR(10),Liste!E31,Liste!F31)","v":"M. Robert BAUFFORT \n12 rue de l’Emeraude\n35300FOUGÈRES"}]
[{"$f":"CONCATENATE(Liste!A32,\" \",Liste!B32,\" \",Liste!C32,\" \",_xlfn.UNICHAR(10),Liste!D32,_xlfn.UNICHAR(10),Liste!E32,Liste!F32)","v":"M. Hervé OURGES \n4 le Prée\n35300FOUGÈRES"}]
[{"$f":"CONCATENATE(Liste!A33,\" \",Liste!B33,\" \",Liste!C33,\" \",_xlfn.UNICHAR(10),Liste!D33,_xlfn.UNICHAR(10),Liste!E33,Liste!F33)","v":"Mme Audrey CAILLE \n47 avenue de la Verrerie\n35300FOUGÈRES"}]
[{"$f":"CONCATENATE(Liste!A34,\" \",Liste!B34,\" \",Liste!C34,\" \",_xlfn.UNICHAR(10),Liste!D34,_xlfn.UNICHAR(10),Liste!E34,Liste!F34)","v":"M. Roméo CHOVEL \n5 rue St Guillaume\n35300FOUGÈRES"}]
[{"$f":"CONCATENATE(Liste!A35,\" \",Liste!B35,\" \",Liste!C35,\" \",_xlfn.UNICHAR(10),Liste!D35,_xlfn.UNICHAR(10),Liste!E35,Liste!F35)","v":"M. Bernard CHERFBON \n4 résidence Emeraude\n35300FOUGÈRES"}]
[{"$f":"CONCATENATE(Liste!A36,\" \",Liste!B36,\" \",Liste!C36,\" \",_xlfn.UNICHAR(10),Liste!D36,_xlfn.UNICHAR(10),Liste!E36,Liste!F36)","v":"Mme Léone COUDRE \n5 vallee Charruée\n35300FOUGÈRES"}]
[{"$f":"CONCATENATE(Liste!A37,\" \",Liste!B37,\" \",Liste!C37,\" \",_xlfn.UNICHAR(10),Liste!D37,_xlfn.UNICHAR(10),Liste!E37,Liste!F37)","v":"M. Gérard COURT \n16 rue Pompéan\n35300FOUGÈRES"}]
[{"$f":"CONCATENATE(Liste!A38,\" \",Liste!B38,\" \",Liste!C38,\" \",_xlfn.UNICHAR(10),Liste!D38,_xlfn.UNICHAR(10),Liste!E38,Liste!F38)","v":"Mme Louise DANFIN \n3 la Butte\n35300FOUGÈRES"}]
[{"$f":"CONCATENATE(Liste!A39,\" \",Liste!B39,\" \",Liste!C39,\" \",_xlfn.UNICHAR(10),Liste!D39,_xlfn.UNICHAR(10),Liste!E39,Liste!F39)","v":"M. Louis DALIPON \n101 le Tilleul\n35300FOUGÈRES"}]
[{"$f":"CONCATENATE(Liste!A40,\" \",Liste!B40,\" \",Liste!C40,\" \",_xlfn.UNICHAR(10),Liste!D40,_xlfn.UNICHAR(10),Liste!E40,Liste!F40)","v":"M. Maurice DEBOUEL \n25 Clos des Melliers\n35300FOUGÈRES"}]
[{"$f":"CONCATENATE(Liste!A41,\" \",Liste!B41,\" \",Liste!C41,\" \",_xlfn.UNICHAR(10),Liste!D41,_xlfn.UNICHAR(10),Liste!E41,Liste!F41)","v":"Mme Pauline DARDO \n3 la Brimandière\n35300FOUGÈRES"}]
[{"$f":"CONCATENATE(Liste!A42,\" \",Liste!B42,\" \",Liste!C42,\" \",_xlfn.UNICHAR(10),Liste!D42,_xlfn.UNICHAR(10),Liste!E42,Liste!F42)","v":"M. Pierre BREIL \n13 rue des Sabotiers\n35300FOUGÈRES"}]
[{"$f":"CONCATENATE(Liste!A43,\" \",Liste!B43,\" \",Liste!C43,\" \",_xlfn.UNICHAR(10),Liste!D43,_xlfn.UNICHAR(10),Liste!E43,Liste!F43)","v":"M. Marc BAYE \n6 rue de la Gare\n35300FOUGÈRES"}]
[{"$f":"CONCATENATE(Liste!A44,\" \",Liste!B44,\" \",Liste!C44,\" \",_xlfn.UNICHAR(10),Liste!D44,_xlfn.UNICHAR(10),Liste!E44,Liste!F44)","v":"Mme Marie BERET \nRésience St Joseph\n35300FOUGÈRES"}]
[{"$f":"CONCATENATE(Liste!A45,\" \",Liste!B45,\" \",Liste!C45,\" \",_xlfn.UNICHAR(10),Liste!D45,_xlfn.UNICHAR(10),Liste!E45,Liste!F45)","v":"M. Michel BERTAN \nRue du Champ du Regard\n35300FOUGÈRES"}]
[{"$f":"CONCATENATE(Liste!A46,\" \",Liste!B46,\" \",Liste!C46,\" \",_xlfn.UNICHAR(10),Liste!D46,_xlfn.UNICHAR(10),Liste!E46,Liste!F46)","v":"M. Claude BANET \n7 rue de la Rivière Dorée\n35300FOUGÈRES"}]
[{"$f":"CONCATENATE(Liste!A47,\" \",Liste!B47,\" \",Liste!C47,\" \",_xlfn.UNICHAR(10),Liste!D47,_xlfn.UNICHAR(10),Liste!E47,Liste!F47)","v":"Mme Aurélie BLANDIN \n50 A rue Papu\n35300FOUGÈRES"}]
[{"$f":"CONCATENATE(Liste!A48,\" \",Liste!B48,\" \",Liste!C48,\" \",_xlfn.UNICHAR(10),Liste!D48,_xlfn.UNICHAR(10),Liste!E48,Liste!F48)","v":"M. Arnaud ROISSEL \n5 rue de la Croix Rouge\n35300FOUGÈRES"}]
[{"$f":"CONCATENATE(Liste!A49,\" \",Liste!B49,\" \",Liste!C49,\" \",_xlfn.UNICHAR(10),Liste!D49,_xlfn.UNICHAR(10),Liste!E49,Liste!F49)","v":"M. Jean BRISSEL \n3 rue de la Mairie\n35300FOUGÈRES"}]
[{"$f":"CONCATENATE(Liste!A50,\" \",Liste!B50,\" \",Liste!C50,\" \",_xlfn.UNICHAR(10),Liste!D50,_xlfn.UNICHAR(10),Liste!E50,Liste!F50)","v":"Mme Estelle BOTTIN \n22 lotissement les Pins\n35300FOUGÈRES"}]
[{"$f":"CONCATENATE(Liste!A51,\" \",Liste!B51,\" \",Liste!C51,\" \",_xlfn.UNICHAR(10),Liste!D51,_xlfn.UNICHAR(10),Liste!E51,Liste!F51)","v":"M. Robert BAUFFORT \n12 rue de l’Emeraude\n35300FOUGÈRES"}]
[{"$f":"CONCATENATE(Liste!A52,\" \",Liste!B52,\" \",Liste!C52,\" \",_xlfn.UNICHAR(10),Liste!D52,_xlfn.UNICHAR(10),Liste!E52,Liste!F52)","v":"M. Hervé OURGES \n4 le Prée\n35300FOUGÈRES"}]
[{"$f":"CONCATENATE(Liste!A53,\" \",Liste!B53,\" \",Liste!C53,\" \",_xlfn.UNICHAR(10),Liste!D53,_xlfn.UNICHAR(10),Liste!E53,Liste!F53)","v":"Mme Audrey CAILLE \n47 avenue de la Verrerie\n35300FOUGÈRES"}]
[{"$f":"CONCATENATE(Liste!A54,\" \",Liste!B54,\" \",Liste!C54,\" \",_xlfn.UNICHAR(10),Liste!D54,_xlfn.UNICHAR(10),Liste!E54,Liste!F54)","v":"M. Roméo CHOVEL \n5 rue St Guillaume\n35300FOUGÈRES"}]
[{"$f":"CONCATENATE(Liste!A55,\" \",Liste!B55,\" \",Liste!C55,\" \",_xlfn.UNICHAR(10),Liste!D55,_xlfn.UNICHAR(10),Liste!E55,Liste!F55)","v":"M. Bernard CHERFBON \n4 résidence Emeraude\n35300FOUGÈRES"}]
[{"$f":"CONCATENATE(Liste!A56,\" \",Liste!B56,\" \",Liste!C56,\" \",_xlfn.UNICHAR(10),Liste!D56,_xlfn.UNICHAR(10),Liste!E56,Liste!F56)","v":"Mme Léone COUDRE \n5 vallee Charruée\n35300FOUGÈRES"}]
[{"$f":"CONCATENATE(Liste!A57,\" \",Liste!B57,\" \",Liste!C57,\" \",_xlfn.UNICHAR(10),Liste!D57,_xlfn.UNICHAR(10),Liste!E57,Liste!F57)","v":"M. Gérard COURT \n16 rue Pompéan\n35300FOUGÈRES"}]
[{"$f":"CONCATENATE(Liste!A58,\" \",Liste!B58,\" \",Liste!C58,\" \",_xlfn.UNICHAR(10),Liste!D58,_xlfn.UNICHAR(10),Liste!E58,Liste!F58)","v":"Mme Louise DANFIN \n3 la Butte\n35300FOUGÈRES"}]
[{"$f":"CONCATENATE(Liste!A59,\" \",Liste!B59,\" \",Liste!C59,\" \",_xlfn.UNICHAR(10),Liste!D59,_xlfn.UNICHAR(10),Liste!E59,Liste!F59)","v":"M. Louis DALIPON \n101 le Tilleul\n35300FOUGÈRES"}]
[{"$f":"CONCATENATE(Liste!A60,\" \",Liste!B60,\" \",Liste!C60,\" \",_xlfn.UNICHAR(10),Liste!D60,_xlfn.UNICHAR(10),Liste!E60,Liste!F60)","v":"M. Maurice DEBOUEL \n25 Clos des Melliers\n35300FOUGÈRES"}]
[{"$f":"CONCATENATE(Liste!A61,\" \",Liste!B61,\" \",Liste!C61,\" \",_xlfn.UNICHAR(10),Liste!D61,_xlfn.UNICHAR(10),Liste!E61,Liste!F61)","v":"Mme Pauline DARDO \n3 la Brimandière\n35300FOUGÈRES"}]
[{"$f":"CONCATENATE(Liste!A62,\" \",Liste!B62,\" \",Liste!C62,\" \",_xlfn.UNICHAR(10),Liste!D62,_xlfn.UNICHAR(10),Liste!E62,Liste!F62)","v":"Mme Pauline DARDO \n4 la Brimandière\n35301FOUGÈRES"}]
[{"$f":"CONCATENATE(Liste!A63,\" \",Liste!B63,\" \",Liste!C63,\" \",_xlfn.UNICHAR(10),Liste!D63,_xlfn.UNICHAR(10),Liste!E63,Liste!F63)","v":"Mme Pauline DARDO \n5 la Brimandière\n35302FOUGÈRES"}]
[{"$f":"CONCATENATE(Liste!A64,\" \",Liste!B64,\" \",Liste!C64,\" \",_xlfn.UNICHAR(10),Liste!D64,_xlfn.UNICHAR(10),Liste!E64,Liste!F64)","v":"Mme Pauline DARDO \n6 la Brimandière\n35303FOUGÈRES"}]
[{"$f":"CONCATENATE(Liste!A65,\" \",Liste!B65,\" \",Liste!C65,\" \",_xlfn.UNICHAR(10),Liste!D65,_xlfn.UNICHAR(10),Liste!E65,Liste!F65)","v":"Mme Pauline DARDO \n7 la Brimandière\n35304FOUGÈRES"}]